[Event "10th Dolomiti Open 2019"]
[Site "Forni di Sopra"]
[Date "2019.06.19"]
[Round "6.10"]
[White "Di Benedetto, Edoardo"]
[Black "Ranaldi, Lucas"]
[Result "1/2-1/2"]
[ECO "E44"]
[WhiteElo "2409"]
[BlackElo "2237"]
[Annotator "NA"]
[PlyCount "88"]
[EventDate "2019.06.15"]
[EventType "swiss"]
[EventCountry "ITA"]
[SourceTitle "playchess.com"]
[Source "ChessBase"]
[SourceQuality "1"]
[TimeControl "40/5400+30:1800+30"]

1. d4 {[%emt 0:00:00]} Nf6 {[%emt 0:03:21]} 2. c4 {[%emt 0:00:00]} e6 {[%emt 0:00:37]} 3. Nc3 {[%emt 0:00:00]} Bb4 {[%emt 0:00:20]} 4. e3 {[%emt 0:00:06]} b6 {[%emt 0:00:06]} 5. Nge2 {[%emt 0:00:17]} Ne4 {[%emt 0:00:06]} 6. Qc2 {[%emt 0:23:06]} Bb7 {[%emt 0:00:15]} 7. a3 {[%emt 0:01:47]} Bxc3+ {[%emt 0:00:14]} 8. Nxc3 {[%emt 0:00:34]} Nxc3 {[%emt 0:00:13]} 9. Qxc3 {[%emt 0:00:06]} d6 {[%emt 0:00:15]} 10. f3 {[%emt 0:12:52]} Qh4+ {[%emt 0:07:33]} 11. g3 {[%emt 0:00:07]} Qh5 {[%emt 0:00:56]} 12. e4 {[%emt 0:00:15]} f5 {[%emt 0:04:56]} 13. Bg2 {[%emt 0:00:36]} fxe4 {[%emt 0:00:59]} 14. fxe4 {[%emt 0:00:12]} O-O {[%emt 0:02:43]} 15. Bf4 {[%emt 0:03:42]} Nd7 {[%emt 0:37:54]} 16. O-O {[%emt 0:00:35]} Rae8 {[%emt 0:07:04]} 17. Bd2 {[%emt 0:13:33]} e5 {[%emt 0:07:35]} 18. d5 {[%emt 0:00:13]} Bc8 {[%emt 0:03:45]} 19. h3 {[%emt 0:03:54]} Rxf1+ {[%emt 0:06:31]} 20. Rxf1 {[%emt 0:00:11]} Rf8 {[%emt 0:00:08]} 21. Rxf8+ {[%emt 0:01:52]} Nxf8 {[%emt 0:00:02]} 22. g4 {[%emt 0:00:30]} Qe8 {[%emt 0:01:25]} 23. b4 {[%emt 0:02:44]} Qd8 {[%emt 0:06:44]} 24. c5 {[%emt 0:01:46]} Bd7 {[%emt 0:00:14]} 25. Qc1 {[%emt 0:03:47]} Ng6 {[%emt 0:03:27]} 26. Bg5 {[%emt 0:02:37]} Qb8 {[%emt 0:00:47]} 27. c6 {[%emt 0:07:28]} Be8 {[%emt 0:00:02]} 28. Qf1 {[%emt 0:01:13]} h6 {[%emt 0:00:18]} 29. Be3 {[%emt 0:00:06]} Nh4 {[%emt 0:02:26]} 30. Bh1 {[%emt 0:01:16]} Qc8 {[%emt 0:01:39]} 31. g5 {[%emt 0:01:44]} h5 {[%emt 0:01:11]} 32. Kh2 {[%emt 0:01:10]} Ng6 {[%emt 0:00:28]} 33. Bf3 {[%emt 0:03:16]} Nf4 {[%emt 0:00:05]} 34. Bxf4 {[%emt 0:01:24]} exf4 {[%emt 0:00:01]} 35. Be2 {[%emt 0:00:15]} Bg6 {[%emt 0:00:15]} 36. Qxf4 {[%emt 0:00:13]} Qe8 {[%emt 0:00:17]} 37. Bf3 {[%emt 0:15:03]} a5 {[%emt 0:01:34]} 38. b5 {[%emt 0:00:00]} Qf7 {[%emt 0:01:24]} 39. Kg3 {[%emt 0:00:00]} Qxf4+ {[%emt 0:00:14]} 40. Kxf4 {[%emt 0:00:00]} Kf7 {[%emt 0:00:59]} 41. e5 {[%emt 0:19:47]} Ke7 {[%emt 0:01:06]} 42. Be4 {[%emt 0:00:00]} Bxe4 {[%emt 0:00:32]} 43. Kxe4 {[%emt 0:00:00]} g6 {[%emt 0:00:10]} 44. exd6+ {[%emt 0:00:00]} cxd6 {[%emt 0:00:13]} 1/2-1/2

[Event "10th Dolomiti Open 2019"]
[Site "Forni di Sopra"]
[Date "2019.06.20"]
[Round "7.1"]
[White "Martinez Alcantara, Jose Eduardo"]
[Black "Basso, Pier Luigi"]
[Result "1/2-1/2"]
[ECO "C67"]
[WhiteElo "2583"]
[BlackElo "2539"]
[Annotator "ChessBase"]
[PlyCount "44"]
[EventDate "2019.06.15"]
[EventType "swiss"]
[EventCountry "ITA"]
[SourceTitle "playchess.com"]
[Source "ChessBase"]
[SourceQuality "1"]
[TimeControl "40/5400+30:1800+30"]

1. e4 {[%emt 0:00:00]} e5 {[%emt 0:07:36]} 2. Nf3 {[%emt 0:00:00]} Nc6 {[%emt 0:00:36]} 3. Bb5 {[%emt 0:00:00]} Nf6 {[%emt 0:00:11]} 4. O-O {[%emt 0:02:06]} Nxe4 {[%emt 0:00:35]} 5. d4 {[%emt 0:00:07]} Nd6 {[%emt 0:00:04]} 6. Bxc6 {[%emt 0:01:29]} dxc6 {[%emt 0:00:07]} 7. dxe5 {[%emt 0:00:04]} Nf5 {[%emt 0:00:06]} 8. Qxd8+ {[%emt 0:00:08]} Kxd8 {[%emt 0:00:03]} 9. h3 {[%emt 0:04:07]} Ke8 {[%emt 0:00:14]} 10. Nc3 {[%emt 0:02:40]} h5 {[%emt 0:00:28]} 11. Bg5 {[%emt 0:01:07]} b6 {[%emt 0:12:20]} 12. Ne2 {[%emt 0:06:45]} Bb7 {[%emt 0:00:14]} 13. Rad1 {[%emt 0:02:59]} c5 {[%emt 0:00:31]} 14. Nc3 {[%emt 0:08:24]} Bxf3 {[%emt 0:01:04]} 15. gxf3 {[%emt 0:00:02]} c6 {[%emt 0:00:10]} 16. Ne4 {[%emt 0:03:28]} Be7 {[%emt 0:01:15]} 17. Bxe7 {[%emt 0:06:17]} Kxe7 {[%emt 0:00:07]} 18. Nd6 {[%emt 0:00:09]} Ke6 {[%emt 0:01:47]} 19. Nxf5 {[%emt 0:01:58]} Kxf5 {[%emt 0:00:09]} 20. Rd7 {[%emt 0:00:11]} Rhf8 {[%emt 0:01:40]} 21. Re1 {[%emt 0:00:59]} Rad8 {[%emt 0:04:12]} 22. Rxa7 {[%emt 0:03:02]} Rd2 {[%emt 0:01:15]} 1/2-1/2

[Event "10th Dolomiti Open 2019"]
[Site "Forni di Sopra"]
[Date "2019.06.20"]
[Round "7.5"]
[White "Sarkar, Justin"]
[Black "Haug, Johannes"]
[Result "1-0"]
[ECO "A18"]
[WhiteElo "2359"]
[BlackElo "2438"]
[Annotator "NA"]
[PlyCount "87"]
[EventDate "2019.06.15"]
[EventType "swiss"]
[EventCountry "ITA"]
[SourceTitle "playchess.com"]
[Source "ChessBase"]
[SourceQuality "1"]
[TimeControl "40/5400+30:1800+30"]

1. c4 {[%emt 0:00:00]} Nf6 {[%emt 0:06:00]} 2. Nc3 {[%emt 0:00:00]} e6 {[%emt 0:00:21]} 3. e4 {[%emt 0:05:07]} d5 {[%emt 0:00:09]} 4. e5 {[%emt 0:00:09]} d4 {[%emt 0:00:18]} 5. exf6 {[%emt 0:00:08]} dxc3 {[%emt 0:00:06]} 6. bxc3 {[%emt 0:00:51]} Qxf6 {[%emt 0:00:06]} 7. Nf3 {[%emt 0:00:12]} e5 {[%emt 0:02:54]} 8. Bd3 {[%emt 0:01:20]} Nc6 {[%emt 0:05:39]} 9. O-O {[%emt 0:05:00]} Bd6 {[%emt 0:07:04]} 10. Rb1 {[%emt 0:11:18]} O-O {[%emt 0:02:27]} 11. Qc2 {[%emt 0:00:37]} g6 {[%emt 0:07:56]} 12. Be4 {[%emt 0:00:32]} Bf5 {[%emt 0:05:56]} 13. Bxf5 {[%emt 0:07:55]} gxf5 {[%emt 0:01:15]} 14. d4 {[%emt 0:02:00]} e4 {[%emt 0:07:11]} 15. Ng5 {[%emt 0:01:11]} h6 {[%emt 0:10:38]} 16. Nh3 {[%emt 0:00:30]} b6 {[%emt 0:00:25]} 17. f3 {[%emt 0:00:38]} exf3 {[%emt 0:04:35]} 18. Rxf3 {[%emt 0:00:25]} Ne7 {[%emt 0:00:03]} 19. Nf4 {[%emt 0:08:45]} c5 {[%emt 0:07:08]} 20. d5 {[%emt 0:06:34]} Ng6 {[%emt 0:02:11]} 21. Bd2 {[%emt 0:06:52]} Bxf4 {[%emt 0:13:49]} 22. Bxf4 {[%emt 0:00:12]} Kg7 {[%emt 0:00:02]} 23. Bc7 {[%emt 0:07:01]} Qe7 {[%emt 0:05:45]} 24. d6 {[%emt 0:01:24]} Qe4 {[%emt 0:03:15]} 25. Qxe4 {[%emt 0:00:53]} fxe4 {[%emt 0:00:01]} 26. Rf5 {[%emt 0:00:35]} f6 {[%emt 0:03:12]} 27. d7 {[%emt 0:09:00]} Ne5 {[%emt 0:01:35]} 28. Rxe5 {[%emt 0:07:23]} fxe5 {[%emt 0:00:14]} 29. Rf1 {[%emt 0:00:06]} Rfd8 {[%emt 0:02:18]} 30. Bxd8 {[%emt 0:00:17]} Rxd8 {[%emt 0:00:04]} 31. Rd1 {[%emt 0:00:05]} Kf6 {[%emt 0:00:31]} 32. Kf2 {[%emt 0:00:27]} Ke6 {[%emt 0:00:13]} 33. Ke3 {[%emt 0:00:16]} Rxd7 {[%emt 0:00:08]} 34. Rxd7 {[%emt 0:00:03]} Kxd7 {[%emt 0:00:04]} 35. Kxe4 {[%emt 0:00:08]} Ke6 {[%emt 0:00:35]} 36. g4 {[%emt 0:00:24]} a6 {[%emt 0:00:16]} 37. a4 {[%emt 0:02:47]} Kf6 {[%emt 0:00:48]} 38. h4 {[%emt 0:00:10]} Ke6 {[%emt 0:00:04]} 39. g5 {[%emt 0:00:30]} h5 {[%emt 0:01:02]} 40. g6 {[%emt 0:00:19]} Kf6 {[%emt 0:00:05]} 41. g7 {[%emt 0:30:54]} Kxg7 {[%emt 0:30:05]} 42. Kxe5 {[%emt 0:00:04]} Kg6 {[%emt 0:00:07]} 43. Ke6 {[%emt 0:00:06]} a5 {[%emt 0:00:06]} 44. Ke5 {[%emt 0:00:11]} 1-0

[Event "10th Dolomiti Open 2019"]
[Site "Forni di Sopra"]
[Date "2019.06.20"]
[Round "7.8"]
[White "Castellanos Rodriguez, Renier"]
[Black "Di Benedetto, Edoardo"]
[Result "1/2-1/2"]
[ECO "A07"]
[WhiteElo "2511"]
[BlackElo "2409"]
[Annotator "ChessBase"]
[PlyCount "96"]
[EventDate "2019.06.15"]
[EventType "swiss"]
[EventCountry "ITA"]
[SourceTitle "playchess.com"]
[Source "ChessBase"]
[SourceQuality "1"]
[TimeControl "40/5400+30:1800+30"]

1. Nf3 {[%emt 0:00:00]} d5 {[%emt 0:00:00]} 2. g3 {[%emt 0:00:00]} c6 {[%emt 0:00:00]} 3. Bg2 {[%emt 0:00:00]} Bg4 {[%emt 0:00:01]} 4. h3 {[%emt 0:00:31]} Bxf3 {[%emt 0:00:59]} 5. Bxf3 {[%emt 0:00:07]} e5 {[%emt 0:05:35]} 6. d3 {[%emt 0:00:11]} Nf6 {[%emt 0:00:04]} 7. O-O {[%emt 0:00:59]} Be7 {[%emt 0:00:31]} 8. Nd2 {[%emt 0:01:40]} O-O {[%emt 0:00:07]} 9. e4 {[%emt 0:00:42]} dxe4 {[%emt 0:00:34]} 10. dxe4 {[%emt 0:00:46]} Nbd7 {[%emt 0:00:17]} 11. Qe2 {[%emt 0:02:09]} Qc7 {[%emt 0:00:26]} 12. a4 {[%emt 0:04:17]} Nc5 {[%emt 0:03:54]} 13. Nc4 {[%emt 0:02:41]} Rad8 {[%emt 0:02:55]} 14. b4 {[%emt 0:05:01]} Ne6 {[%emt 0:00:23]} 15. c3 {[%emt 0:00:06]} Rd7 {[%emt 0:05:02]} 16. Be3 {[%emt 0:04:28]} b6 {[%emt 0:00:18]} 17. Rfd1 {[%emt 0:01:07]} Rfd8 {[%emt 0:01:04]} 18. Rxd7 {[%emt 0:01:09]} Rxd7 {[%emt 0:00:19]} 19. h4 {[%emt 0:01:55]} b5 {[%emt 0:07:39]} 20. Na5 {[%emt 0:02:58]} a6 {[%emt 0:01:07]} 21. Kg2 {[%emt 0:05:56]} h6 {[%emt 0:01:58]} 22. Kh2 {[%emt 0:04:05]} Qd6 {[%emt 0:06:40]} 23. Ra2 {[%emt 0:04:34]} Bd8 {[%emt 0:02:52]} 24. axb5 {[%emt 0:04:49]} axb5 {[%emt 0:00:24]} 25. Kg2 {[%emt 0:06:31]} Kh8 {[%emt 0:03:35]} 26. Nb3 {[%emt 0:02:54]} Qd3 {[%emt 0:06:22]} 27. Qxd3 {[%emt 0:02:50]} Rxd3 {[%emt 0:00:07]} 28. Rc2 {[%emt 0:00:04]} Bc7 {[%emt 0:16:11]} 29. Nc1 {[%emt 0:04:48]} Rd8 {[%emt 0:00:07]} 30. Ra2 {[%emt 0:00:07]} Bd6 {[%emt 0:02:07]} 31. Nb3 {[%emt 0:02:57]} Rc8 {[%emt 0:01:56]} 32. Ra6 {[%emt 0:02:56]} Bf8 {[%emt 0:01:14]} 33. Na5 {[%emt 0:04:21]} c5 {[%emt 0:00:10]} 34. Nc6 {[%emt 0:00:23]} cxb4 {[%emt 0:00:25]} 35. cxb4 {[%emt 0:00:33]} Nd7 {[%emt 0:18:58]} 36. Bg4 {[%emt 0:03:27]} Kg8 {[%emt 0:06:42]} 37. Na7 {[%emt 0:06:12]} Re8 {[%emt 0:00:08]} 38. Nc6 {[%emt 0:06:46]} Nf6 {[%emt 0:03:43]} 39. Bf3 {[%emt 0:00:33]} Nd8 {[%emt 0:00:26]} 40. Nxd8 {[%emt 0:10:21]} Rxd8 {[%emt 0:00:09]} 41. Rb6 {[%emt 0:32:28]} Bxb4 {[%emt 0:31:01]} 42. Rxb5 {[%emt 0:00:01]} Bc3 {[%emt 0:00:00]} 43. g4 {[%emt 0:00:00]} Ne8 {[%emt 0:00:00]} 44. g5 {[%emt 0:00:00]} hxg5 {[%emt 0:00:00]} 45. hxg5 {[%emt 0:00:00]} Nd6 {[%emt 0:00:00]} 46. Rc5 {[%emt 0:00:00]} Rc8 {[%emt 0:00:00]} 47. Rxc8+ {[%emt 0:00:00]} Nxc8 {[%emt 0:00:00]} 48. Bc5 {[%emt 0:00:00]} Bd4 {[%emt 0:00:00]} 1/2-1/2

[Event "10th Dolomiti Open 2019"]
[Site "Forni di Sopra"]
[Date "2019.06.21"]
[Round "8.3"]
[White "Cruz, Cristhian"]
[Black "Sarkar, Justin"]
[Result "1/2-1/2"]
[ECO "D20"]
[WhiteElo "2561"]
[BlackElo "2359"]
[Annotator "ChessBase"]
[PlyCount "62"]
[EventDate "2019.06.15"]
[EventType "swiss"]
[EventCountry "ITA"]
[SourceTitle "playchess.com"]
[Source "ChessBase"]
[SourceQuality "1"]
[TimeControl "40/5400+30:1800+30"]

1. d4 {[%emt 0:00:00]} d5 {[%emt 0:00:59]} 2. c4 {[%emt 0:00:00]} dxc4 {[%emt 0:00:15]} 3. e4 {[%emt 0:00:22]} e5 {[%emt 0:02:00]} 4. Nf3 {[%emt 0:00:15]} Bb4+ {[%emt 0:02:07]} 5. Bd2 {[%emt 0:01:47]} Bxd2+ {[%emt 0:02:01]} 6. Qxd2 {[%emt 0:01:02]} exd4 {[%emt 0:00:16]} 7. Qxd4 {[%emt 0:00:46]} Nf6 {[%emt 0:00:29]} 8. Qxd8+ {[%emt 0:01:34]} Kxd8 {[%emt 0:00:04]} 9. Nc3 {[%emt 0:00:12]} Be6 {[%emt 0:00:48]} 10. Nd4 {[%emt 0:02:45]} Nc6 {[%emt 0:05:24]} 11. Nxc6+ {[%emt 0:21:23]} bxc6 {[%emt 0:00:03]} 12. O-O-O+ {[%emt 0:01:41]} Ke7 {[%emt 0:00:16]} 13. Be2 {[%emt 0:00:12]} Nd7 {[%emt 0:08:13]} 14. Rd4 {[%emt 0:01:52]} Nb6 {[%emt 0:39:32]} 15. Rhd1 {[%emt 0:00:59]} g5 {[%emt 0:01:36]} 16. g3 {[%emt 0:13:19]} f6 {[%emt 0:06:05]} 17. f4 {[%emt 0:16:45]} gxf4 {[%emt 0:00:10]} 18. gxf4 {[%emt 0:00:02]} Rhg8 {[%emt 0:01:37]} 19. f5 {[%emt 0:10:26]} Bf7 {[%emt 0:00:13]} 20. e5 {[%emt 0:00:27]} fxe5 {[%emt 0:02:52]} 21. Rh4 {[%emt 0:00:11]} Nd5 {[%emt 0:05:49]} 22. Bxc4 {[%emt 0:02:29]} Nxc3 {[%emt 0:01:13]} 23. bxc3 {[%emt 0:02:37]} Bxc4 {[%emt 0:02:21]} 24. Rxc4 {[%emt 0:00:14]} Rad8 {[%emt 0:06:30]} 25. Rxc6 {[%emt 0:03:24]} Rxd1+ {[%emt 0:00:10]} 26. Kxd1 {[%emt 0:00:04]} Rg2 {[%emt 0:00:28]} 27. Re6+ {[%emt 0:06:42]} Kf7 {[%emt 0:00:30]} 28. Rxe5 {[%emt 0:00:05]} Rxa2 {[%emt 0:00:25]} 29. Rc5 {[%emt 0:00:27]} Rxh2 {[%emt 0:00:54]} 30. Rxc7+ {[%emt 0:00:04]} Kf6 {[%emt 0:00:05]} 31. Rxa7 {[%emt 0:00:07]} Kxf5 {[%emt 0:00:09]} 1/2-1/2

[Event "10th Dolomiti Open 2019"]
[Site "Forni di Sopra"]
[Date "2019.06.21"]
[Round "8.6"]
[White "Kumar, Nikhil"]
[Black "Sonis, Francesco"]
[Result "0-1"]
[ECO "E52"]
[WhiteElo "2257"]
[BlackElo "2494"]
[Annotator "ChessBase"]
[PlyCount "94"]
[EventDate "2019.06.15"]
[EventType "swiss"]
[EventCountry "ITA"]
[SourceTitle "playchess.com"]
[Source "ChessBase"]
[SourceQuality "1"]
[TimeControl "40/5400+30:1800+30"]

1. d4 {[%emt 0:00:00]} Nf6 {[%emt 0:00:00]} 2. c4 {[%emt 0:00:00]} e6 {[%emt 0:00:00]} 3. Nc3 {[%emt 0:00:00]} Bb4 {[%emt 0:00:00]} 4. e3 {[%emt 0:00:00]} b6 {[%emt 0:00:11]} 5. Bd2 {[%emt 0:00:07]} Bb7 {[%emt 0:00:08]} 6. Nf3 {[%emt 0:00:06]} O-O {[%emt 0:00:12]} 7. Bd3 {[%emt 0:00:25]} d5 {[%emt 0:01:32]} 8. cxd5 {[%emt 0:00:52]} exd5 {[%emt 0:00:21]} 9. O-O {[%emt 0:00:08]} Be7 {[%emt 0:06:45]} 10. Ne5 {[%emt 0:00:59]} c5 {[%emt 0:00:31]} 11. f4 {[%emt 0:02:30]} Nc6 {[%emt 0:00:41]} 12. Rc1 {[%emt 0:06:48]} cxd4 {[%emt 0:07:25]} 13. Nxc6 {[%emt 0:00:42]} Bxc6 {[%emt 0:00:03]} 14. exd4 {[%emt 0:00:12]} Qd7 {[%emt 0:06:16]} 15. Re1 {[%emt 0:10:32]} Bb4 {[%emt 0:08:39]} 16. Ne2 {[%emt 0:07:13]} Bxd2 {[%emt 0:12:09]} 17. Qxd2 {[%emt 0:00:13]} Rfe8 {[%emt 0:00:12]} 18. Ng3 {[%emt 0:07:05]} Ne4 {[%emt 0:02:10]} 19. Qc2 {[%emt 0:20:48]} Rac8 {[%emt 0:00:39]} 20. Ba6 {[%emt 0:01:12]} Bb7 {[%emt 0:02:19]} 21. Qd3 {[%emt 0:00:15]} Bxa6 {[%emt 0:09:54]} 22. Qxa6 {[%emt 0:00:10]} f5 {[%emt 0:01:34]} 23. Ne2 {[%emt 0:07:01]} h6 {[%emt 0:05:56]} 24. g3 {[%emt 0:07:16]} Kh7 {[%emt 0:01:08]} 25. Kg2 {[%emt 0:01:48]} Nd6 {[%emt 0:02:22]} 26. Rxc8 {[%emt 0:07:39]} Rxc8 {[%emt 0:03:37]} 27. Qd3 {[%emt 0:01:00]} Qe6 {[%emt 0:01:43]} 28. Rc1 {[%emt 0:03:51]} Rxc1 {[%emt 0:04:28]} 29. Nxc1 {[%emt 0:00:01]} Qe1 {[%emt 0:00:07]} 30. Qc3 {[%emt 0:02:57]} Qe4+ {[%emt 0:00:29]} 31. Kh3 {[%emt 0:00:34]} Nb5 {[%emt 0:00:27]} 32. Qd3 {[%emt 0:03:36]} Nxd4 {[%emt 0:00:24]} 33. Qxe4 {[%emt 0:00:05]} fxe4 {[%emt 0:01:54]} 34. Kg2 {[%emt 0:00:04]} Kg6 {[%emt 0:01:36]} 35. g4 {[%emt 0:00:17]} Kf6 {[%emt 0:02:14]} 36. Kf2 {[%emt 0:00:19]} g5 {[%emt 0:01:24]} 37. Ke3 {[%emt 0:04:31]} Nc2+ {[%emt 0:00:47]} 38. Kd2 {[%emt 0:00:12]} Nd4 {[%emt 0:00:05]} 39. Ke3 {[%emt 0:00:19]} Nc2+ {[%emt 0:02:02]} 40. Kd2 {[%emt 0:00:05]} Nb4 {[%emt 0:00:02]} 41. a3 {[%emt 0:31:01]} Nc6 {[%emt 0:30:18]} 42. Ke3 {[%emt 0:00:19]} gxf4+ {[%emt 0:00:19]} 43. Kxf4 {[%emt 0:00:06]} Ne5 {[%emt 0:00:02]} 44. Ne2 {[%emt 0:00:33]} Nd3+ {[%emt 0:01:09]} 45. Ke3 {[%emt 0:00:06]} Ke5 {[%emt 0:00:17]} 46. b3 {[%emt 0:00:27]} Ne1 {[%emt 0:00:17]} 47. a4 {[%emt 0:01:32]} d4+ {[%emt 0:18:42] Kxd4+} 0-1

[Event "10th Dolomiti Open 2019"]
[Site "Forni di Sopra"]
[Date "2019.06.21"]
[Round "8.7"]
[White "Guerrero Sierra, Juan Carlos"]
[Black "Bellia, Fabrizio"]
[Result "1/2-1/2"]
[ECO "C77"]
[WhiteElo "2290"]
[BlackElo "2450"]
[Annotator "ChessBase"]
[PlyCount "84"]
[EventDate "2019.06.15"]
[EventType "swiss"]
[EventCountry "ITA"]
[SourceTitle "playchess.com"]
[Source "ChessBase"]
[SourceQuality "1"]
[TimeControl "40/5400+30:1800+30"]

1. e4 {[%emt 0:06:49]} e5 {[%emt 0:00:00]} 2. Nf3 {[%emt 0:00:11]} Nc6 {[%emt 0:00:00]} 3. Bb5 {[%emt 0:00:29]} a6 {[%emt 0:00:00]} 4. Ba4 {[%emt 0:00:10]} Nf6 {[%emt 0:00:00]} 5. d3 {[%emt 0:00:10]} b5 {[%emt 0:00:12]} 6. Bb3 {[%emt 0:00:08]} Be7 {[%emt 0:00:35]} 7. Nc3 {[%emt 0:01:11]} d6 {[%emt 0:00:26]} 8. a3 {[%emt 0:00:18]} O-O {[%emt 0:00:36]} 9. Nd5 {[%emt 0:03:17]} Na5 {[%emt 0:06:04]} 10. Ba2 {[%emt 0:00:52]} c6 {[%emt 0:00:54]} 11. Nxf6+ {[%emt 0:01:57]} Bxf6 {[%emt 0:00:06]} 12. b4 {[%emt 0:00:54]} Nb7 {[%emt 0:00:10]} 13. Bb2 {[%emt 0:01:12]} Qe7 {[%emt 0:05:12]} 14. O-O {[%emt 0:04:44]} Be6 {[%emt 0:00:15]} 15. c4 {[%emt 1:15:08]} Rfc8 {[%emt 0:14:35]} 16. Re1 {[%emt 0:00:00]} a5 {[%emt 0:01:38]} 17. cxb5 {[%emt 0:00:00]} cxb5 {[%emt 0:03:49]} 18. Bd5 {[%emt 0:00:00]} Bxd5 {[%emt 0:04:04]} 19. exd5 {[%emt 0:00:00]} Qd7 {[%emt 0:00:06]} 20. Nd2 {[%emt 0:00:00]} Bg5 {[%emt 0:02:32]} 21. Ne4 {[%emt 0:00:00]} Bh6 {[%emt 0:00:57]} 22. Qh5 {[%emt 0:00:00]} Qd8 {[%emt 0:12:46]} 23. d4 {[%emt 0:00:00]} Rc2 {[%emt 0:08:31]} 24. Rab1 {[%emt 0:00:00]} axb4 {[%emt 0:01:12]} 25. axb4 {[%emt 0:00:00]} f6 {[%emt 0:04:06]} 26. Bc1 {[%emt 0:00:00]} Bxc1 {[%emt 0:01:01]} 27. Rexc1 {[%emt 0:00:00]} Rxc1+ {[%emt 0:06:44]} 28. Rxc1 {[%emt 0:00:00]} exd4 {[%emt 0:00:34]} 29. h3 {[%emt 0:00:00]} d3 {[%emt 0:10:48]} 30. Qd1 {[%emt 0:00:00]} f5 {[%emt 0:05:15]} 31. Ng3 {[%emt 0:00:00]} Qg5 {[%emt 0:00:51]} 32. Rc7 {[%emt 0:00:00]} f4 {[%emt 0:00:53]} 33. Ne4 {[%emt 0:00:00]} Qxd5 {[%emt 0:01:44]} 34. Qg4 {[%emt 0:00:00]} Qe5 {[%emt 0:01:30]} 35. Rc8+ {[%emt 0:00:00]} Rxc8 {[%emt 0:00:32]} 36. Qxc8+ {[%emt 0:00:00]} Kf7 {[%emt 0:00:12]} 37. Qxb7+ {[%emt 0:00:00]} Ke6 {[%emt 0:00:10]} 38. Qc6 {[%emt 0:04:06]} Qd4 {[%emt 0:04:03]} 39. Ng5+ {[%emt 0:03:36]} Kf6 {[%emt 0:00:45]} 40. Ne4+ {[%emt 0:00:08]} Ke6 {[%emt 0:00:37]} 41. Nc5+ {[%emt 0:04:41]} Kf6 {[%emt 0:03:45]} 42. Ne4+ {[%emt 0:02:50]} Ke5 {[%emt 0:01:42]} 1/2-1/2

[Event "10th Dolomiti Open 2019"]
[Site "Forni di Sopra"]
[Date "2019.06.21"]
[Round "8.8"]
[White "Haug, Johannes"]
[Black "Alok Sinha"]
[Result "1/2-1/2"]
[ECO "B51"]
[WhiteElo "2438"]
[BlackElo "2205"]
[Annotator "NA"]
[PlyCount "66"]
[EventDate "2019.06.15"]
[EventType "swiss"]
[EventCountry "ITA"]
[SourceTitle "playchess.com"]
[Source "ChessBase"]
[SourceQuality "1"]
[TimeControl "40/5400+30:1800+30"]

1. e4 {[%emt 0:00:00]} c5 {[%emt 0:00:00]} 2. Nf3 {[%emt 0:00:00]} d6 {[%emt 0:00:00]} 3. Bb5+ {[%emt 0:00:00]} Nc6 {[%emt 0:00:00]} 4. O-O {[%emt 0:00:20]} Bd7 {[%emt 0:00:00]} 5. Re1 {[%emt 0:00:15]} Nf6 {[%emt 0:00:12]} 6. c3 {[%emt 0:00:07]} a6 {[%emt 0:00:08]} 7. Bc4 {[%emt 0:00:03]} Bg4 {[%emt 0:01:35]} 8. d4 {[%emt 0:00:10]} cxd4 {[%emt 0:01:05]} 9. cxd4 {[%emt 0:00:29]} b5 {[%emt 0:00:27]} 10. Bf1 {[%emt 0:02:14]} e5 {[%emt 0:00:40]} 11. d5 {[%emt 0:07:43]} Nd4 {[%emt 0:00:10]} 12. Be3 {[%emt 0:05:11]} Nxf3+ {[%emt 0:00:57]} 13. gxf3 {[%emt 0:00:04]} Bd7 {[%emt 0:00:11]} 14. a4 {[%emt 0:01:49]} Rb8 {[%emt 0:01:16]} 15. axb5 {[%emt 0:04:44]} axb5 {[%emt 0:00:08]} 16. b4 {[%emt 0:03:55]} Be7 {[%emt 0:00:54]} 17. Nc3 {[%emt 0:02:49]} O-O {[%emt 0:00:15]} 18. Ra5 {[%emt 0:03:27]} Nh5 {[%emt 0:05:44]} 19. Bxb5 {[%emt 0:14:10]} Bh3 {[%emt 0:00:26]} 20. Ra7 {[%emt 0:14:30]} Bg5 {[%emt 0:17:06]} 21. Qd2 {[%emt 0:07:59]} Bf4 {[%emt 0:03:04]} 22. Kh1 {[%emt 0:01:46]} Qh4 {[%emt 0:02:22]} 23. Bxf4 {[%emt 0:00:20]} Nxf4 {[%emt 0:00:31]} 24. Rg1 {[%emt 0:00:52]} Rfc8 {[%emt 0:10:17]} 25. Ra2 {[%emt 0:06:29]} Kh8 {[%emt 0:14:22]} 26. Ba6 {[%emt 0:12:24]} Rg8 {[%emt 0:01:15]} 27. Nd1 {[%emt 0:02:33]} g5 {[%emt 0:01:30]} 28. Ne3 {[%emt 0:00:47]} Rg6 {[%emt 0:00:39]} 29. Rg3 {[%emt 0:03:00]} Rh6 {[%emt 0:02:51]} 30. Kg1 {[%emt 0:01:41]} Rg8 {[%emt 0:10:13]} 31. Be2 {[%emt 0:02:21]} Bd7 {[%emt 0:03:08]} 32. Nf1 {[%emt 0:00:06]} Bh3 {[%emt 0:00:21]} 33. Ne3 {[%emt 0:00:05]} Bd7 {[%emt 0:00:08]} 1/2-1/2

[Event "10th Dolomiti Open 2019"]
[Site "Forni di Sopra"]
[Date "2019.06.21"]
[Round "8.9"]
[White "Gueci, Tea"]
[Black "Anand Nadar"]
[Result "1/2-1/2"]
[ECO "B90"]
[WhiteElo "2257"]
[BlackElo "2366"]
[Annotator "ChessBase"]
[PlyCount "64"]
[EventDate "2019.06.15"]
[EventType "swiss"]
[EventCountry "ITA"]
[SourceTitle "playchess.com"]
[Source "ChessBase"]
[SourceQuality "1"]
[TimeControl "40/5400+30:1800+30"]

1. e4 {[%emt 0:00:00]} c5 {[%emt 0:00:00]} 2. Nf3 {[%emt 0:00:00]} d6 {[%emt 0:00:00]} 3. d4 {[%emt 0:00:00]} cxd4 {[%emt 0:00:00]} 4. Nxd4 {[%emt 0:00:00]} Nf6 {[%emt 0:00:00]} 5. Nc3 {[%emt 0:00:00]} a6 {[%emt 0:00:00]} 6. f3 {[%emt 0:00:05]} e5 {[%emt 0:04:24]} 7. Nb3 {[%emt 0:00:07]} Be6 {[%emt 0:00:05]} 8. Be3 {[%emt 1:33:48]} h5 {[%emt 0:00:04]} 9. Nd5 {[%emt 0:00:00]} Bxd5 {[%emt 0:03:19]} 10. exd5 {[%emt 0:00:00]} Nbd7 {[%emt 0:00:08]} 11. Be2 {[%emt 0:00:00]} Rc8 {[%emt 0:00:25]} 12. c4 {[%emt 0:00:00]} g6 {[%emt 0:02:30]} 13. Qd2 {[%emt 0:00:00]} b6 {[%emt 0:05:06]} 14. O-O {[%emt 0:00:00]} Bg7 {[%emt 0:02:44]} 15. Rac1 {[%emt 0:00:00]} O-O {[%emt 0:05:24]} 16. Na1 {[%emt 0:00:00]} a5 {[%emt 0:11:59]} 17. b3 {[%emt 0:00:00]} Nh7 {[%emt 0:01:39]} 18. Nc2 {[%emt 0:00:00]} Re8 {[%emt 0:06:19]} 19. a3 {[%emt 0:00:00]} f5 {[%emt 0:09:16]} 20. b4 {[%emt 0:00:00]} f4 {[%emt 0:10:19]} 21. Bf2 {[%emt 0:00:00]} Bh6 {[%emt 0:01:47]} 22. Bd3 {[%emt 0:00:00]} Kg7 {[%emt 0:01:16]} 23. Na1 {[%emt 0:00:00]} Nhf6 {[%emt 0:05:57]} 24. Qb2 {[%emt 0:00:00]} Kf7 {[%emt 0:01:43]} 25. Nb3 {[%emt 0:00:00]} Rg8 {[%emt 0:02:51]} 26. c5 {[%emt 0:00:00]} a4 {[%emt 0:07:42]} 27. c6 {[%emt 0:00:00]} axb3 {[%emt 0:01:37]} 28. cxd7 {[%emt 0:00:00]} Qxd7 {[%emt 0:00:17]} 29. Qxb3 {[%emt 0:00:00]} g5 {[%emt 0:02:38]} 30. Qb1 {[%emt 0:00:00]} Rc4 {[%emt 0:15:31]} 31. Rc2 Rxc2 {[%emt 0:00:00]} 32. Rc1 Rxc1+ {[%emt 0:00:00]} 1/2-1/2